bitfinex/quotes_ETHUSD_20260217
["timestamp","ask_amount","ask_price","bid_price","bid_amount"]
[1771299915135,1.75412995,1990.7,1990.0,0.47493581]
[1771299915439,0.0011,1992.0,1991.1,0.47493581]
[1771299915642,2.96780165,1991.8,1991.0,6.79754112]
[1771299916021,3.46604704,1991.8,1991.0,1.39293581]
[1771299916224,0.49824539,1991.8,1991.0,1.39293581]
[1771299916422,1.7534545,1991.7,1991.0,2.17364652]
[1771299918780,1.25520911,1991.7,1991.0,2.64858233]
[1771299918942,1.255195,1991.8,1991.0,2.64858233]
[1771299919851,0.49824539,1991.6,1991.0,0.918]
[1771299920079,0.49824539,1991.6,1991.0,2.17363651]
[1771299921582,1.75352279,1991.6,1991.0,2.17363651]
[1771299926488,5.02144228,1991.9,1991.1,0.47493581]
[1771299926489,1.75448005,1991.9,1991.1,0.47493581]
[1771299926789,2.96689155,1991.8,1991.1,0.47493581]
[1771299927712,2.96689155,1991.8,1991.2,1.73046011]
[1771299928007,0.0011,1991.9,1991.3,0.47493581]
[1771299929777,0.0011,1991.9,1991.4,1.25539821]
[1771299929983,0.0011,1991.9,1991.5,1.39193581]
[1771299930986,0.0011,1991.9,1991.5,0.917]
[1771299933896,0.0011,1991.9,1991.5,2.17232978]
[1771299935185,0.0011,1991.8,1991.5,2.17232978]
[1771299938506,0.0011,1991.8,1991.5,2.64726559]
[1771299939404,0.0011,1991.8,1991.6,0.47493581]
[1771299940285,0.0011,1992.0,1991.7,1.73014492]
[1771299941298,0.0011,1992.0,1991.7,1.25520911]
[1771299941889,0.0011,1992.0,1991.7,1.73014492]
[1771299942200,0.0011,1992.0,1991.8,0.47493581]
[1771299942401,0.0011,1992.0,1991.9,0.919]
[1771299945510,0.0011,1992.2,1991.9,0.919]
[1771299945511,0.0011,1992.2,1991.9,2.17408308]
[1771299945708,0.0011,1992.2,1992.0,0.4750805]
[1771299947095,1.25463191,1992.7,1992.1,1.73003758]
[1771299947286,1.7240488,1992.7,1992.1,1.73003758]
[1771299947999,0.0011,1992.2,1992.1,1.73003758]
[1771299948211,1.25456314,1992.8,1992.2,0.4750805]
[1771299948511,0.0011,1992.4,1992.3,0.921]
[1771299949017,1.72390904,1992.9,1992.3,2.17577881]
[1771299949707,1.72390904,1992.9,1992.3,1.3821377]
[1771299951317,0.47716371,1992.6,1991.8,0.921]
[1771299951498,0.47716371,1992.4,1991.8,0.921]
[1771299953522,0.47716371,1992.2,1991.8,0.921]
[1771299954020,1.25483109,1992.3,1991.8,0.921]
[1771299954217,1.7319948,1992.3,1991.8,0.921]
[1771299954421,0.47716371,1992.2,1991.8,0.921]
[1771299956419,1.25492707,1992.2,1991.8,0.921]
[1771299956588,5.01937139,1992.3,1991.8,0.921]
[1771299956796,1.25486746,1992.3,1991.8,0.921]
[1771299959110,1.73203117,1992.3,1991.8,0.921]
[1771299959919,1.73203117,1992.3,1991.9,0.001]
[1771299962016,1.25486746,1992.3,1991.9,0.001]
[1771299963130,1.73203117,1992.3,1991.9,0.001]
[1771299966633,5.01909005,1992.4,1991.9,0.001]
[1771299967034,5.49625376,1992.4,1991.9,0.001]
[1771299970133,0.47716371,1992.3,1991.9,0.001]
[1771299971538,1.25489408,1992.2,1991.9,0.001]
[1771299971739,0.47716371,1992.1,1991.9,0.001]
[1771299972045,1.25489408,1992.2,1991.9,0.001]
[1771299972836,1.25489408,1992.2,1992.0,0.001]
[1771299974212,0.47826371,1992.3,1992.0,0.001]
[1771299974422,1.73309642,1992.3,1992.0,0.001]
[1771299976850,0.0011,1992.3,1992.0,0.001]
[1771299979545,0.47953353,1992.3,1992.0,0.001]
[1771299979748,0.0011,1992.3,1992.0,0.001]
[1771299982230,0.47953353,1992.3,1992.0,0.001]
[1771299982623,0.0011,1992.3,1992.0,0.001]
[1771299984522,0.0011,1992.3,1992.0,0.49671373]
[1771299985348,0.0011,1992.3,1992.0,0.001]
[1771299985757,0.47953353,1992.3,1992.0,0.001]
[1771299985959,0.47953353,1992.3,1992.1,0.001]
[1771299986124,0.47953353,1992.3,1991.9,0.001]
[1771299987854,0.0011,1992.3,1991.9,0.49671373]
[1771299988856,0.0011,1992.3,1991.9,0.001]
[1771299989230,0.47843353,1992.2,1991.9,0.001]
[1771299990144,0.47843353,1992.0,1991.7,0.906]
[1771299990934,1.25495708,1992.1,1991.7,0.906]
[1771299994564,10.41811818,1992.3,1991.7,0.906]
[1771299994565,1.25595223,1992.3,1991.7,0.906]
[1771299994966,0.47843353,1992.2,1991.7,0.906]
[1771299996766,1.25495708,1992.1,1991.7,0.906]
[1771299997140,1.25495708,1992.1,1991.7,0.001]
[1771299997458,1.25495708,1992.1,1991.8,0.001]
[1771299998175,1.73339061,1992.1,1991.8,0.001]
[1771299998477,0.47843353,1992.0,1991.7,0.001]
[1771299998688,1.73351661,1991.9,1991.5,0.001]
[1771299999197,5.87612608,1991.8,1991.5,0.001]
[1771299999469,0.47843353,1991.7,1991.3,0.407]
[1771300000767,1.25527214,1991.6,1991.3,0.407]
[1771300001766,5.87612608,1991.4,1990.9,0.001]
[1771300002174,0.47843353,1991.3,1990.9,0.001]
[1771300003067,1.2555243,1991.2,1990.9,0.001]
[1771300003258,1.73393697,1991.3,1990.9,0.001]
[1771300004274,0.47843353,1991.3,1990.9,0.001]
[1771300004571,1.73390594,1991.3,1990.9,0.001]
[1771300004955,0.47843353,1991.3,1990.9,0.001]
[1771300005269,1.73390873,1991.3,1990.9,0.001]
[1771300009376,0.47843353,1991.3,1990.9,0.001]
[1771300009683,0.47843353,1991.3,1991.0,0.001]
[1771300010570,1.71397946,1991.4,1991.0,0.001]
[1771300010771,0.4585318,1991.3,1991.0,0.001]
[1771300013581,1.71367789,1991.8,1991.0,0.001]
[1771300013758,1.71367789,1991.8,1991.0,0.48228413]
[1771300013956,0.4585318,1991.7,1991.0,0.48228413]
[1771300014681,0.4585318,1991.7,1991.0,0.001]
[1771300016455,0.4585318,1991.5,1991.0,0.001]
[1771300018609,1.71393001,1991.4,1991.0,0.001]
[1771300020399,1.71393001,1991.4,1990.9,0.001]
[1771300020400,0.4585318,1991.3,1990.9,0.001]
[1771300020783,1.2555243,1991.2,1990.9,0.001]
[1771300021290,0.4585318,1991.1,1990.9,0.001]
[1771300021989,0.4585318,1991.1,1991.0,0.001]
[1771300022195,1.2566243,1991.2,1991.0,0.001]
[1771300022397,1.7151561,1991.2,1991.0,0.001]
[1771300022979,0.4585318,1991.1,1991.0,0.001]
[1771300023205,0.4585318,1991.1,1990.9,0.001]
[1771300024897,1.25565042,1991.0,1990.9,0.001]
[1771300027310,1.25565042,1991.0,1990.8,0.001]
[1771300028816,1.71418222,1991.0,1990.8,0.001]
[1771300029114,0.4585318,1990.9,1990.7,0.001]
[1771300029314,1.25577657,1990.8,1990.3,1.38228413]
[1771300030609,1.71429663,1990.9,1990.3,2.63836996]
[1771300031210,5.02273996,1991.0,1990.4,0.48128413]
[1771300032103,5.48127176,1991.0,1990.4,0.48128413]
[1771300033118,0.4585318,1990.9,1990.3,0.901]
[1771300033505,1.24246636,1990.8,1990.3,2.63837614]
[1771300033692,1.71429624,1990.9,1990.3,2.63837312]
[1771300034624,1.71429624,1990.9,1990.5,0.001]
[1771300035197,1.25576444,1990.9,1990.5,0.001]
[1771300035393,5.02385575,1991.0,1990.5,0.48382987]
[1771300038691,1.25675042,1991.0,1990.5,0.48382987]
[1771300038892,0.0011,1991.0,1990.6,0.48282987]
[1771300039426,0.0011,1991.0,1990.7,0.48282987]
[1771300040428,0.0011,1991.3,1990.9,0.48282987]
[1771300040603,5.02011687,1992.0,1991.1,0.48282987]
[1771300040803,5.02011687,1992.0,1991.2,0.48282987]
[1771300040997,0.0011,1991.9,1991.2,0.48282987]
[1771300041534,0.0011,1991.9,1991.4,0.48282987]
[1771300043302,0.0011,1991.9,1991.5,0.48282987]
[1771300046629,0.0011,1991.9,1991.3,1.38282987]
[1771300046829,0.45618233,1991.9,1991.3,0.9]
[1771300047195,1.25514609,1991.8,1991.3,0.9]
[1771300047601,0.0011,1991.7,1991.3,0.9]
[1771300047831,0.45618233,1991.7,1991.0,0.48282987]
[1771300049510,1.25527214,1991.6,1991.0,0.48282987]
[1771300049917,0.0011,1991.5,1991.0,0.48282987]
[1771300050118,0.0011,1991.5,1991.1,0.48282987]
[1771300051945,0.0011,1991.4,1991.1,0.48282987]
[1771300052245,0.0011,1991.6,1991.1,0.48282987]
[1771300055351,0.0011,1991.5,1991.1,0.48282987]
[1771300056650,0.0011,1991.4,1991.1,0.48282987]
[1771300056945,0.0011,1991.6,1991.1,0.48282987]
[1771300058424,0.45508233,1991.5,1990.8,0.48382987]
[1771300058641,0.45508233,1991.5,1990.8,1.37982987]
[1771300058819,0.45508233,1991.5,1990.8,0.897]
[1771300059024,0.45508233,1991.5,1990.9,0.48282987]
[1771300059216,0.0011,1991.4,1990.9,0.48282987]
[1771300059423,0.45618233,1991.4,1990.8,0.897]
[1771300059619,5.39899103,1991.2,1990.7,0.0009]
[1771300059844,0.45508233,1991.0,1990.7,0.0009]
[1771300060024,0.45508233,1991.0,1990.5,0.001]
[1771300060831,0.45508233,1991.0,1990.8,0.001]
[1771300061017,0.45508233,1991.0,1990.5,0.001]
[1771300061554,0.45508233,1991.0,1990.6,0.001]
[1771300061726,1.25571349,1990.9,1990.6,0.001]
[1771300061929,0.45508233,1990.8,1990.5,0.001]
[1771300062254,0.45508233,1990.8,1990.0,0.802]
[1771300063626,5.85407336,1990.8,1990.0,0.802]
[1771300063827,1.71098507,1990.6,1990.0,0.802]
[1771300064657,1.25590274,1990.6,1990.0,0.802]
[1771300064859,5.02300426,1990.9,1990.2,0.45461393]
[1771300065241,5.47340847,1990.9,1990.2,0.45461393]
[1771300066726,1.25569897,1991.0,1990.2,1.71073034]
[1771300067033,5.02249736,1991.1,1990.4,0.45361393]
[1771300067831,1.25546125,1991.3,1990.4,0.45361393]
[1771300068831,1.25546125,1991.3,1990.6,0.45361393]
[1771300069027,1.25546125,1991.3,1990.7,0.45361393]
[1771300069735,1.25544639,1991.4,1990.7,5.85260496]
[1771300069935,1.25544639,1991.4,1990.8,0.49856605]
[1771300072842,0.0011,1991.5,1990.8,0.49956605]
[1771300073240,0.0011,1991.5,1990.9,0.49856605]
[1771300080862,0.46692954,1991.5,1990.9,0.49856605]
[1771300081862,1.25539821,1991.4,1990.9,0.49856605]
[1771300086372,1.25649821,1991.4,1990.9,0.49856605]
[1771300087765,1.72232775,1991.4,1990.8,0.001]
[1771300088077,1.72232775,1991.4,1990.8,0.49956605]
[1771300088656,1.25649821,1991.4,1990.9,0.49856605]
[1771300095296,0.0011,1991.4,1990.9,0.49856605]
[1771300097881,1.25649821,1991.4,1990.9,0.49856605]
[1771300098186,0.0011,1991.4,1990.9,1.75426839]
[1771300098376,0.0011,1991.4,1991.0,0.4865364]
[1771300099480,0.0011,1991.4,1991.1,1.3745364]
[1771300100053,0.0011,1991.3,1991.1,1.3745364]
[1771300102891,0.0011,1991.3,1991.1,0.888]
[1771300104158,0.0011,1991.3,1991.1,1.3745364]
[1771300104486,0.0011,1991.7,1991.2,0.4865364]
[1771300104793,0.0011,1991.8,1991.5,0.4865364]
[1771300105093,0.0011,1991.8,1991.6,0.888]
[1771300105586,0.0011,1991.9,1991.7,0.4865364]
[1771300105794,1.25606164,1992.1,1991.7,0.4865364]
[1771300106005,0.0011,1992.0,1991.7,0.4865364]
[1771300106561,0.0011,1992.0,1991.6,1.3745364]
[1771300106976,0.0011,1992.0,1991.6,2.62980582]
[1771300108102,0.0011,1992.0,1991.6,1.3745364]
[1771300109002,0.0011,1992.0,1991.7,0.4865364]
[1771300109202,0.0011,1992.1,1991.2,0.4865364]
[1771300109375,0.0011,1992.1,1991.4,0.4865364]
[1771300109376,0.0011,1991.9,1991.4,0.4865364]
[1771300109774,0.0011,1991.9,1991.6,0.4865364]
[1771300109975,0.0011,1991.9,1991.7,0.89]
[1771300110576,0.0011,1991.9,1991.7,1.3765364]
[1771300110804,0.0011,1992.1,1991.8,0.4865364]
[1771300111021,0.0011,1992.0,1991.8,0.4865364]
[1771300111886,0.0011,1992.1,1991.8,0.4865364]
[1771300112090,0.0011,1992.0,1991.8,0.4865364]
[1771300112286,0.0011,1992.0,1991.7,0.89]
[1771300112605,0.0011,1991.9,1991.7,0.89]
[1771300113189,0.0011,1991.9,1991.7,1.3765364]
[1771300118816,0.0011,1991.9,1991.7,0.89]
[1771300119313,0.0022,1991.9,1991.7,0.89]
[1771300122322,0.0022,1991.9,1991.8,0.895]
[1771300124513,0.0022,1991.9,1991.8,0.896]
[1771300126247,0.0011,1992.1,1991.8,2.15114171]
[1771300126458,0.0011,1992.1,1991.8,2.63946486]
[1771300127747,0.0011,1992.1,1991.9,0.48832315]
[1771300129053,0.0011,1992.2,1991.9,0.48832315]
[1771300129634,0.0011,1992.2,1991.8,0.896]
[1771300130464,0.47547153,1992.2,1991.8,0.896]
[1771300130841,0.0011,1992.2,1991.8,0.896]
[1771300133967,0.0011,1992.2,1991.8,1.38314488]
[1771300134141,0.0011,1992.2,1991.9,0.48714488]
[1771300134340,0.0011,1992.2,1991.8,0.896]
[1771300134541,0.0011,1992.2,1991.8,1.38314488]
[1771300134736,0.0011,1992.2,1991.8,2.15114549]
[1771300134965,0.0011,1992.2,1991.9,0.48714488]
[1771300137051,0.0011,1992.2,1991.9,0.48814488]
[1771300137273,0.0011,1992.1,1991.9,0.48814488]
[1771300137851,0.0011,1992.2,1991.9,0.48814488]
[1771300138339,0.0011,1992.2,1991.9,1.74321008]
[1771300138840,0.0011,1992.2,1991.9,0.48814488]
[1771300139853,0.0011,1992.2,1991.9,1.39314488]
[1771300141444,0.0011,1992.2,1991.9,0.906]
[1771300143374,0.0011,1992.4,1992.0,0.48714488]
[1771300144168,0.0011,1992.4,1992.1,0.9]
[1771300145485,0.0011,1992.4,1992.1,8.03972375]
[1771300145667,0.0011,1992.5,1992.1,8.03972375]
[1771300147468,0.0011,1992.5,1992.1,1.38714488]
[1771300147781,0.47547153,1992.5,1992.1,0.9]
[1771300148100,0.47547153,1992.5,1992.1,0.902]
[1771300148270,0.47547153,1992.5,1992.0,0.902]
[1771300149293,0.47547153,1992.5,1991.9,0.001]
[1771300149493,0.32027088,1992.2,1991.6,0.001]
[1771300149796,0.32027088,1992.0,1991.6,0.001]
[1771300150165,0.32027088,1992.0,1991.3,0.902]
[1771300152794,0.32027088,1991.8,1991.3,0.902]
[1771300155302,1.25520911,1991.7,1991.3,0.902]
[1771300158800,1.57547999,1991.7,1991.3,0.902]
[1771300161190,0.32027088,1991.6,1991.2,0.904]
[1771300162076,1.25520911,1991.7,1991.4,0.001]
[1771300162618,1.57547999,1991.7,1991.4,0.001]
[1771300167488,0.32027088,1991.6,1991.4,0.001]
[1771300167808,0.32027088,1991.6,1991.3,0.001]
[1771300168176,0.32027088,1991.6,1991.1,0.001]
[1771300168720,1.25533517,1991.5,1991.1,0.001]
[1771300173217,1.22821993,1991.5,1991.1,0.001]
[1771300173906,1.22821993,1991.5,1991.2,0.001]
[1771300176611,5.02244069,1991.6,1991.2,0.001]
[1771300180513,5.34271157,1991.6,1991.2,0.001]
[1771300180907,0.32027088,1991.5,1991.2,0.00012253]
[1771300181088,0.32027088,1991.5,1991.1,0.001]
[1771300182216,0.32027088,1991.5,1990.9,0.001]
[1771300184519,1.25539821,1991.4,1990.9,0.001]
[1771300184690,2.09939821,1991.4,1990.9,0.001]
[1771300185211,0.32027088,1991.3,1990.9,0.001]
[1771300186998,1.2555243,1991.2,1991.0,0.001]
[1771300187200,1.2555243,1991.2,1990.9,0.001]
[1771300189200,1.2555243,1991.2,1990.8,0.001]
[1771300190498,1.57579518,1991.2,1990.8,0.001]
[1771300190703,1.16927088,1991.1,1990.8,0.001]
[1771300191222,1.25565042,1991.0,1990.7,0.001]
[1771300194235,1.25565042,1991.0,1990.7,0.45676921]
[1771300196928,5.02188732,1991.3,1990.8,0.45576921]
[1771300196929,1.25550983,1991.3,1990.8,0.45576921]
[1771300198811,0.0011,1991.4,1990.9,0.45576921]
[1771300199404,0.0011,1991.4,1990.9,0.45676921]
[1771300199804,0.0011,1991.2,1990.9,0.45676921]
[1771300200533,0.0011,1991.3,1991.0,0.45576921]
[1771300202300,0.0011,1991.5,1991.4,0.45576921]
[1771300202500,0.0011,1991.7,1991.3,0.45576921]
[1771300202707,0.0011,1991.7,1991.4,0.45576921]
[1771300203911,0.0011,1991.9,1991.5,0.45576921]
[1771300205214,0.0011,1991.9,1991.6,0.45576921]
[1771300205520,0.0011,1991.9,1991.7,0.45576921]
[1771300205706,0.0011,1992.3,1991.7,0.45576921]
[1771300205909,0.0011,1992.3,1991.8,0.45576921]
[1771300207457,0.32137088,1992.3,1991.6,1.34576921]
[1771300208543,0.32137088,1992.3,1991.6,0.89]
[1771300209543,1.57516496,1992.2,1991.6,0.89]
[1771300210218,0.32027088,1992.1,1991.4,0.905]
[1771300210425,0.32027088,1992.1,1991.4,1.36076921]
[1771300210745,0.32027088,1992.1,1991.5,0.45576921]
[1771300211338,1.25489408,1992.2,1991.5,0.45576921]
[1771300212848,0.0011,1992.2,1991.7,0.45576921]
[1771300217139,0.0011,1992.2,1991.8,0.47787843]
[1771300224960,0.0011,1992.2,1991.9,0.47787843]
[1771300225268,0.0011,1992.2,1991.9,0.47887843]
[1771300225589,0.0011,1992.1,1991.9,0.47887843]
[1771300228780,0.0011,1992.3,1992.0,0.47787843]
[1771300234071,0.0011,1992.3,1991.9,0.893]
[1771300234793,0.0011,1992.3,1991.9,1.37087843]
[1771300237392,0.0011,1992.2,1991.9,1.37087843]
[1771300237767,0.0011,1992.2,1991.9,0.893]
[1771300238291,0.0011,1992.2,1991.9,0.001]
[1771300242286,0.0011,1992.2,1991.9,0.47887843]
[1771300245688,0.0011,1992.2,1992.0,0.49669248]
[1771300249386,0.0011,1992.2,1992.0,0.49769248]
[1771300253515,0.0011,1992.2,1992.0,1.75268698]
[1771300253696,0.0011,1992.2,1992.1,0.49334073]
[1771300255090,0.0011,1992.4,1992.1,0.896]
[1771300255298,0.0011,1992.4,1992.2,0.49334073]
[1771300256623,0.0011,1992.4,1992.1,1.38934073]
[1771300257719,0.0011,1992.4,1992.2,0.49334073]
[1771300261710,0.0011,1992.3,1992.2,0.49334073]
[1771300262201,1.24137921,1992.7,1992.3,0.49334073]
[1771300263027,1.25456284,1992.8,1992.3,0.49334073]
[1771300264328,5.01733959,1993.1,1992.4,0.49334073]
[1771300264539,0.32027088,1993.0,1992.4,0.49334073]
[1771300264833,0.32027088,1992.9,1992.1,0.001]
[1771300265044,0.32027088,1992.9,1992.1,0.899]
[1771300265216,0.32027088,1992.7,1992.1,0.899]
[1771300268639,1.25464217,1992.6,1992.1,0.899]
[1771300270214,1.25464217,1992.6,1992.1,1.39234073]
[1771300271533,1.25464217,1992.6,1992.1,0.001]
[1771300272043,1.25464217,1992.6,1992.1,0.49434073]
[1771300273345,1.254617,1992.7,1992.2,0.49434073]
[1771300273531,1.25439036,1993.0,1992.2,0.49434073]
[1771300273720,0.0011,1992.8,1992.2,0.49434073]
[1771300274107,0.0011,1992.8,1992.4,0.49868727]
[1771300275212,0.0011,1992.8,1992.3,0.895]
[1771300275414,0.32137088,1992.8,1992.2,1.39468727]
[1771300277538,0.0011,1992.8,1992.3,0.49868727]
[1771300281544,0.0011,1992.8,1992.3,1.25482743]
[1771300281742,0.0011,1992.8,1992.4,0.49868727]
[1771300286246,0.0011,1992.8,1992.4,0.49968727]
[1771300286643,0.0011,1992.7,1992.4,0.49968727]
[1771300292750,0.0011,1992.7,1992.5,0.49868727]
[1771300299959,0.0011,1992.7,1992.4,1.2557586]
[1771300300262,0.0011,1992.7,1992.4,1.75444587]
[1771300301347,0.0011,1992.7,1992.4,1.2557586]
[1771300301540,0.0011,1992.7,1992.5,0.49868727]
[1771300303542,0.0011,1992.7,1992.6,0.49868727]
[1771300306038,0.0011,1992.7,1992.6,1.39968727]
[1771300309168,0.0011,1992.7,1992.6,0.901]
[1771300311671,0.0011,1992.7,1992.6,0.902]
[1771300312670,0.0011,1992.7,1992.6,1.35537369]
[1771300313372,0.0011,1992.7,1992.6,0.902]
[1771300317365,1.25439036,1993.0,1992.6,1.35537369]
[1771300318572,1.25436507,1993.1,1992.6,1.35537369]
[1771300319179,1.25436507,1993.1,1992.6,0.902]
[1771300319474,1.25426449,1993.2,1992.7,0.45337369]
[1771300322270,1.57453537,1993.2,1992.6,1.35537369]
[1771300322470,0.32027088,1993.1,1992.6,0.907]
[1771300322673,0.32027088,1993.1,1992.6,0.001]
[1771300323072,0.32027088,1993.1,1992.4,0.001]
[1771300323274,0.32027088,1992.9,1992.4,0.001]
[1771300323881,0.32027088,1992.7,1992.4,0.001]
[1771300324878,0.32027088,1992.7,1992.5,0.001]
[1771300325179,0.32027088,1992.7,1992.3,0.001]
[1771300325864,0.32027088,1992.5,1992.3,0.001]
[1771300326660,1.25464217,1992.6,1992.3,0.001]
[1771300326877,1.57491305,1992.6,1992.3,0.001]
[1771300328166,1.25464217,1992.6,1992.3,0.001]
[1771300330481,1.57491305,1992.6,1992.3,0.001]
[1771300330795,0.32027088,1992.5,1992.1,0.001]
[1771300333459,1.25476811,1992.4,1992.1,0.001]
[1771300336974,1.25476811,1992.4,1992.2,0.001]
[1771300340378,1.25579033,1992.6,1992.3,0.45100788]
[1771300340694,0.0011,1992.6,1992.3,0.45100788]
[1771300341101,0.0011,1992.6,1992.2,0.001]
[1771300347205,0.0011,1992.6,1992.2,0.45200788]
[1771300350287,0.0011,1992.6,1992.3,0.001]
[1771300350508,0.0011,1992.5,1992.3,0.001]
[1771300351808,0.0011,1992.5,1992.2,0.001]
[1771300352013,0.32137088,1992.5,1992.2,0.001]
[1771300354613,1.25476811,1992.4,1992.2,0.001]
[1771300357110,5.02017247,1992.5,1992.2,0.001]
[1771300357615,5.02017247,1992.5,1992.2,0.45200788]
[1771300360917,1.25580514,1992.5,1992.2,0.45200788]
[1771300363120,0.0011,1992.5,1992.2,0.45200788]
[1771300363523,0.0011,1992.5,1992.3,0.001]
[1771300363921,0.0011,1992.4,1992.3,0.45200788]
[1771300364729,0.0011,1992.4,1992.3,0.001]
[1771300365219,0.0011,1992.4,1992.2,0.001]
[1771300366393,0.0011,1992.4,1992.2,0.46082569]
[1771300366591,0.0011,1992.4,1992.2,0.001]
[1771300369599,0.0011,1992.4,1992.2,0.45806363]
[1771300372204,0.0011,1992.4,1992.3,0.45706363]
[1771300372542,1.25526632,1992.9,1992.4,0.45706363]
[1771300374733,1.5755372,1992.9,1992.2,0.45806363]
[1771300374908,1.5755372,1992.9,1992.2,0.001]
[1771300374909,0.32027088,1992.8,1992.2,0.001]
[1771300375112,0.32027088,1992.8,1992.2,0.45806363]
[1771300375820,0.32027088,1992.8,1992.3,0.001]
[1771300376218,0.32137088,1992.8,1992.3,0.001]
[1771300376834,1.25457921,1992.7,1992.3,0.001]
[1771300377811,1.25457921,1992.7,1992.3,0.45806363]
[1771300380224,0.0011,1992.8,1992.3,0.45806363]
[1771300380932,0.0011,1992.8,1992.4,0.45706363]
[1771300384516,0.0011,1992.8,1992.4,1.25476455]
[1771300384829,0.0011,1992.8,1992.5,0.45706363]
[1771300394158,0.0011,1992.8,1992.6,0.45541864]
[1771300394456,0.0011,1993.1,1992.6,0.45541864]
[1771300397362,0.0011,1993.1,1992.7,0.45541864]
[1771300399556,0.0011,1993.0,1992.7,0.45541864]
[1771300401932,0.0011,1993.0,1992.6,0.45641864]
[1771300403844,0.0011,1993.0,1992.6,0.001]
[1771300404042,0.0011,1993.0,1992.6,0.893]
[1771300406858,1.25549036,1993.0,1992.6,0.893]
[1771300407167,0.0011,1993.0,1992.6,1.34841864]
[1771300412077,0.0011,1993.0,1992.7,0.001]
[1771300412469,0.0011,1992.9,1992.7,0.001]
[1771300416181,0.0011,1992.9,1992.7,0.45641864]
[1771300418379,0.0011,1992.9,1992.8,0.45541864]
[1771300419850,0.0011,1993.1,1992.8,0.45541864]
[1771300420293,0.0011,1993.1,1992.9,0.45541864]
[1771300423607,0.0011,1993.2,1993.0,0.45541864]
[1771300423755,1.25394994,1993.8,1993.1,0.45541864]
[1771300423955,0.32027088,1993.7,1993.1,0.45541864]
[1771300425596,1.57428372,1993.6,1993.0,0.892]
[1771300425893,0.32027088,1993.5,1992.9,0.45059296]
[1771300426077,0.0011,1993.1,1992.8,0.408]
[1771300427970,0.0011,1993.1,1992.8,0.001]
[1771300432900,0.0011,1993.1,1992.8,0.48231504]
[1771300434991,0.0011,1993.1,1992.8,0.001]
[1771300435196,0.32137088,1993.1,1992.8,0.001]
[1771300435705,0.0011,1993.1,1992.8,0.001]
[1771300438485,1.25542742,1993.1,1992.9,0.001]
[1771300439614,0.0011,1993.1,1992.9,0.001]
[1771300439806,0.0011,1993.1,1992.9,0.48231504]
[1771300447028,0.0011,1993.1,1992.5,0.001]
[1771300447029,0.48577204,1992.8,1991.3,0.001]
[1771300447324,6.270892,1991.5,1991.3,0.001]
[1771300448025,6.270892,1991.5,1991.3,0.48231504]
[1771300449118,7.52623497,1991.5,1991.3,0.48231504]
[1771300449421,1.25534297,1991.5,1991.3,0.48231504]
[1771300450605,1.25534297,1991.5,1991.3,0.001]
[1771300450810,1.25534297,1991.5,1991.4,0.001]
[1771300451117,1.25514609,1991.8,1991.4,0.001]
[1771300451311,2.98110684,1991.7,1991.5,0.89]
[1771300451513,5.380892,1991.5,1991.4,0.001]
[1771300452212,5.380892,1991.5,1991.4,0.891]
[1771300453207,1.25533517,1991.5,1991.4,0.89]
[1771300453522,1.25533517,1991.5,1991.4,1.794]
[1771300454212,1.25533517,1991.5,1991.4,0.89]
[1771300455197,5.0212939,1991.6,1991.3,1.795]
[1771300455398,5.380892,1991.5,1991.3,1.795]
[1771300463358,5.380892,1991.5,1991.4,0.001]
[1771300465556,5.02033479,1991.9,1991.4,0.48534172]
[1771300465557,1.25512755,1991.9,1991.4,0.48534172]
[1771300465724,5.380892,1991.7,1991.4,0.48534172]
[1771300470214,5.380892,1991.7,1991.5,0.48434172]
[1771300471425,7.08966223,1991.7,1991.4,0.001]
[1771300471629,1.25521146,1991.7,1991.4,0.001]
[1771300471844,5.380892,1991.6,1991.4,0.001]
[1771300472434,5.380892,1991.6,1991.5,0.89]
[1771300474218,2.98666831,1991.6,1991.5,0.89]
[1771300475566,2.3941442,1991.9,1991.5,1.37434172]
[1771300476058,0.0011,1991.6,1991.5,2.62967689]
[1771300476559,0.0011,1991.8,1991.7,0.48434172]
[1771300476723,0.0011,1991.8,1991.6,1.73956407]
[1771300477319,0.0011,1991.8,1991.7,0.48434172]
[1771300477556,1.25476811,1992.4,1991.7,0.48434172]
[1771300477756,1.70830807,1992.5,1991.7,5.88531889]
[1771300477952,1.70830807,1992.5,1991.8,0.48434172]
[1771300478134,1.70830807,1992.5,1991.9,0.891]
[1771300478653,1.70830807,1992.5,1991.8,0.48434172]
[1771300478654,5.40097717,1992.1,1991.4,0.001]
[1771300478986,0.45355877,1992.0,1991.4,0.001]
[1771300479646,0.45355877,1992.0,1991.5,0.891]
[1771300481239,1.70864185,1991.9,1991.5,0.891]
[1771300481645,0.45355877,1992.1,1991.5,2.14631181]
[1771300481846,5.01970239,1992.2,1991.6,0.48434172]
[1771300482042,0.45355877,1992.3,1991.6,0.48434172]
[1771300482250,1.25489408,1992.2,1991.6,0.48434172]
[1771300482452,1.70845285,1992.2,1991.6,0.48434172]
[1771300484277,1.70845285,1992.2,1991.5,2.14631181]
[1771300485263,1.25489408,1992.2,1991.5,2.14631181]
[1771300485571,0.46401339,1992.1,1991.5,2.14631181]
[1771300486083,0.46401339,1992.1,1991.5,2.6339486]
[1771300486676,1.71901154,1992.1,1991.5,2.6339486]
[1771300487486,1.71901154,1992.1,1991.6,0.001]
[1771300487687,0.0011,1992.0,1991.6,0.001]
[1771300490063,0.0011,1992.0,1991.7,0.89]
[1771300490257,0.0011,1992.0,1991.7,1.37695881]
[1771300490458,0.0011,1992.0,1991.8,0.89]
[1771300494373,0.0011,1992.0,1991.9,0.89]
[1771300509404,0.0011,1992.0,1991.8,0.001]
[1771300509583,0.47023872,1992.0,1991.9,0.891]
[1771300509906,0.47023872,1992.0,1991.9,0.23524992]
[1771300512410,0.47023872,1992.0,1991.9,0.23624992]
[1771300513083,0.0011,1992.0,1991.9,0.23624992]
[1771300513483,0.0011,1992.0,1991.9,0.892]